Workbook

Sheet MATCH
A1: TOURNOI INTERNATIONAL DE FRANCE - SOUVENIR DENIS RANDON 2015
E2: 13ème Edition Clermont l'Hérault Samedi 24 octobre
G3: COUPE BERNARD GARCIA
A4: SEXE | B4: Tir | C4: REG. | D4: Place | E4: NOMS | F4: Prénoms | G4: Clubs | H4: AN | I4: POIDS | J4: 1 | K4: 2 | L4: 3 | M4: ARR | N4: 1 | O4: 2 | P4: 3 | Q4: EP-J | R4: Total | S4: IWF | T4: Class | V4: Catég | W4: Points | X4: DEP + | Y4: REG + | Z4: IRG + | AA4: FED + | AB4: NAT + | AC4: INTB + | AD4: INTA + | AE4: OLY + | AF4: NCL
E5: Filles
A6: F | E6: ROMERO | F6: Héloïse | G6: Narbonne Haltéro | H6: 2000 | I6: 51.75 | J6: 40 | K6: 43 | L6: 45 | M6: =IF(I6="","",IF(MAXA(J6:L6)<=0,0,MAXA(J6:L6))) -> 45 | N6: 50 | O6: 55 | P6: -58 | Q6: =IF(I6="","",IF(MAXA(N6:P6)<=0,0,MAXA(N6:P6))) -> 55 | R6: =IF(I6="","",IF(OR(M6=0,Q6=0),0,M6+Q6)) -> 100 | S6: =IF(I6="","",IF(A6="H",10^(0.794358141*LOG(I6/174.393)^2)*R6,IF(A6="F",10^(0.89726074*LOG(I6/148.026)^2)*R6,""))) -> 153.7881667 | T6: =RANK(S6,S6:S9) -> 3 | U6: =IF(I6="","",IF(AE6>=0,AE6,IF(AD6>=0,AD6,IF(AC6>=0,AC6,IF(AB6>=0,AB6,IF(AA6>=0,AA6,IF(Z6>=0,Z6,IF(Y6>=0,Y6,X6)))))))) ->  | W6: =SUM(R6-I6) -> 48.25 | X6: =R6-HLOOKUP(V6,Feuil1!$C$1:$AU$9,2,FALSE) ->  | Y6: =R6-HLOOKUP(V6,Feuil1!$C$1:$AU$9,3,FALSE) ->  | Z6: =R6-HLOOKUP(V6,Feuil1!$C$1:$AU$9,4,FALSE) ->  | AA6: =R6-HLOOKUP(V6,Feuil1!$C$1:$AU$9,5,FALSE) ->  | AB6: =R6-HLOOKUP(V6,Feuil1!$C$1:$AU$9,6,FALSE) ->  | AC6: =R6-HLOOKUP(V6,Feuil1!$C$1:$AU$9,7,FALSE) ->  | AD6: =R6-HLOOKUP(V6,Feuil1!$C$1:$AU$9,8,FALSE) ->  | AE6: =R6-HLOOKUP(V6,Feuil1!$C$1:$AU$9,9,FALSE) ->  | AM6: =IF(AE6>=0,$AE$4,IF(AD6>=0,$AD$4,IF(AC6>=0,$AC$4,IF(AB6>=0,$AB$4,IF(AA6>=0,$AA$4,IF(Z6>=0,$Z$4,IF(Y6>=0,$Y$4,IF(X6>=0,$X$4,$AF$4)))))))) -> 
A7: F | E7: CHRISTOPHEL | F7: Marie | G7: ASPTT Strabourg | H7: 2000 | I7: 47 | J7: 44 | K7: -47 | L7: 47 | M7: =IF(I7="","",IF(MAXA(J7:L7)<=0,0,MAXA(J7:L7))) -> 47 | N7: 54 | O7: 57 | P7: 60 | Q7: =IF(I7="","",IF(MAXA(N7:P7)<=0,0,MAXA(N7:P7))) -> 60 | R7: =IF(I7="","",IF(OR(M7=0,Q7=0),0,M7+Q7)) -> 107 | S7: =IF(I7="","",IF(A7="H",10^(0.794358141*LOG(I7/174.393)^2)*R7,IF(A7="F",10^(0.89726074*LOG(I7/148.026)^2)*R7,""))) -> 178.699235 | T7: =RANK(S7,S6:S9) -> 2 | U7: =IF(I7="","",IF(AE7>=0,AE7,IF(AD7>=0,AD7,IF(AC7>=0,AC7,IF(AB7>=0,AB7,IF(AA7>=0,AA7,IF(Z7>=0,Z7,IF(Y7>=0,Y7,X7)))))))) ->  | W7: =SUM(R7-I7) -> 60 | X7: =R7-HLOOKUP(V7,Feuil1!$C$1:$AU$9,2,FALSE) ->  | Y7: =R7-HLOOKUP(V7,Feuil1!$C$1:$AU$9,3,FALSE) ->  | Z7: =R7-HLOOKUP(V7,Feuil1!$C$1:$AU$9,4,FALSE) ->  | AA7: =R7-HLOOKUP(V7,Feuil1!$C$1:$AU$9,5,FALSE) ->  | AB7: =R7-HLOOKUP(V7,Feuil1!$C$1:$AU$9,6,FALSE) ->  | AC7: =R7-HLOOKUP(V7,Feuil1!$C$1:$AU$9,7,FALSE) ->  | AD7: =R7-HLOOKUP(V7,Feuil1!$C$1:$AU$9,8,FALSE) ->  | AE7: =R7-HLOOKUP(V7,Feuil1!$C$1:$AU$9,9,FALSE) ->  | AM7: =IF(AE7>=0,$AE$4,IF(AD7>=0,$AD$4,IF(AC7>=0,$AC$4,IF(AB7>=0,$AB$4,IF(AA7>=0,$AA$4,IF(Z7>=0,$Z$4,IF(Y7>=0,$Y$4,IF(X7>=0,$X$4,$AF$4)))))))) -> 
A8: F | E8: OTT | F8: Justine | G8: SHC Haguenau | H8: 1998 | I8: 64.85 | J8: 59 | K8: 62 | L8: -65 | M8: =IF(I8="","",IF(MAXA(J8:L8)<=0,0,MAXA(J8:L8))) -> 62 | N8: 78 | O8: 81 | P8: 83 | Q8: =IF(I8="","",IF(MAXA(N8:P8)<=0,0,MAXA(N8:P8))) -> 83 | R8: =IF(I8="","",IF(OR(M8=0,Q8=0),0,M8+Q8)) -> 145 | S8: =IF(I8="","",IF(A8="H",10^(0.794358141*LOG(I8/174.393)^2)*R8,IF(A8="F",10^(0.89726074*LOG(I8/148.026)^2)*R8,""))) -> 189.0774214 | T8: =RANK(S8,S6:S9) -> 1 | U8: =IF(I8="","",IF(AE8>=0,AE8,IF(AD8>=0,AD8,IF(AC8>=0,AC8,IF(AB8>=0,AB8,IF(AA8>=0,AA8,IF(Z8>=0,Z8,IF(Y8>=0,Y8,X8)))))))) -> 0 | AO8: 1
A9: F | E9: PEIGUET | F9: Clara | G9: Clermont Sports | H9: 2007 | I9: 28.15 | J9: 16 | K9: 18 | L9: 20 | M9: =IF(I9="","",IF(MAXA(J9:L9)<=0,0,MAXA(J9:L9))) -> 20 | N9: 26 | O9: 28 | P9: 30 | Q9: =IF(I9="","",IF(MAXA(N9:P9)<=0,0,MAXA(N9:P9))) -> 30 | R9: =IF(I9="","",IF(OR(M9=0,Q9=0),0,M9+Q9)) -> 50 | S9: =IF(I9="","",IF(A9="H",10^(0.794358141*LOG(I9/174.393)^2)*R9,IF(A9="F",10^(0.89726074*LOG(I9/148.026)^2)*R9,""))) -> 146.2922406 | T9: =RANK(S9,S6:S9) -> 4 | U9: =IF(I9="","",IF(AE9>=0,AE9,IF(AD9>=0,AD9,IF(AC9>=0,AC9,IF(AB9>=0,AB9,IF(AA9>=0,AA9,IF(Z9>=0,Z9,IF(Y9>=0,Y9,X9)))))))) -> 0 | AO9: 1
E10: Garçons
A11: H | E11: BENOIT | F11: Johann | G11: EEAR Monteux | H11: 1998 | I11: 91.95 | J11: 95 | K11: -100 | L11: -100 | M11: =IF(I11="","",IF(MAXA(J11:L11)<=0,0,MAXA(J11:L11))) -> 95 | N11: -113 | O11: 115 | P11: -120 | Q11: =IF(I11="","",IF(MAXA(N11:P11)<=0,0,MAXA(N11:P11))) -> 115 | R11: =IF(I11="","",IF(OR(M11=0,Q11=0),0,M11+Q11)) -> 210 | S11: =IF(I11="","",IF(A11="H",10^(0.794358141*LOG(I11/174.393)^2)*R11,IF(A11="F",10^(0.89726074*LOG(I11/148.026)^2)*R11,""))) -> 241.8802733 | T11: =RANK(S11,S11:S16) -> 5 | U11: =IF(I11="","",IF(AE11>=0,AE11,IF(AD11>=0,AD11,IF(AC11>=0,AC11,IF(AB11>=0,AB11,IF(AA11>=0,AA11,IF(Z11>=0,Z11,IF(Y11>=0,Y11,X11)))))))) ->  | W11: =SUM(R11-(I11*2)) -> 26.1 | X11: =R11-HLOOKUP(V11,Feuil1!$C$1:$AU$9,2,FALSE) ->  | Y11: =R11-HLOOKUP(V11,Feuil1!$C$1:$AU$9,3,FALSE) ->  | Z11: =R11-HLOOKUP(V11,Feuil1!$C$1:$AU$9,4,FALSE) ->  | AA11: =R11-HLOOKUP(V11,Feuil1!$C$1:$AU$9,5,FALSE) ->  | AB11: =R11-HLOOKUP(V11,Feuil1!$C$1:$AU$9,6,FALSE) ->  | AC11: =R11-HLOOKUP(V11,Feuil1!$C$1:$AU$9,7,FALSE) ->  | AD11: =R11-HLOOKUP(V11,Feuil1!$C$1:$AU$9,8,FALSE) ->  | AE11: =R11-HLOOKUP(V11,Feuil1!$C$1:$AU$9,9,FALSE) ->  | AM11: =IF(AE11>=0,$AE$4,IF(AD11>=0,$AD$4,IF(AC11>=0,$AC$4,IF(AB11>=0,$AB$4,IF(AA11>=0,$AA$4,IF(Z11>=0,$Z$4,IF(Y11>=0,$Y$4,IF(X11>=0,$X$4,$AF$4)))))))) -> 
A12: H | E12: SERGENT | F12: Enzo | G12: Clermont Sports | H12: 2001 | I12: 61.55 | J12: 72 | K12: 75 | L12: 78 | M12: 78 | N12: 95 | O12: -100 | P12: 100 | Q12: 100 | R12: 178 | S12: 258.7776483 | T12: =RANK(S12,S11:S16) -> 3 | W12: =SUM(R12-I12) -> 116.45 | X12: =R12-HLOOKUP(V12,Feuil1!$C$1:$AU$9,2,FALSE) ->  | Y12: =R12-HLOOKUP(V12,Feuil1!$C$1:$AU$9,3,FALSE) ->  | Z12: =R12-HLOOKUP(V12,Feuil1!$C$1:$AU$9,4,FALSE) ->  | AA12: =R12-HLOOKUP(V12,Feuil1!$C$1:$AU$9,5,FALSE) ->  | AB12: =R12-HLOOKUP(V12,Feuil1!$C$1:$AU$9,6,FALSE) ->  | AC12: =R12-HLOOKUP(V12,Feuil1!$C$1:$AU$9,7,FALSE) ->  | AD12: =R12-HLOOKUP(V12,Feuil1!$C$1:$AU$9,8,FALSE) ->  | AE12: =R12-HLOOKUP(V12,Feuil1!$C$1:$AU$9,9,FALSE) -> 
A13: H | E13: CANCE | F13: Quentin | G13: Figeac | H13: 2002 | I13: 58.8 | J13: 50 | K13: 53 | L13: 57 | M13: =IF(I13="","",IF(MAXA(J13:L13)<=0,0,MAXA(J13:L13))) -> 57 | N13: 67 | O13: -72 | P13: 72 | Q13: =IF(I13="","",IF(MAXA(N13:P13)<=0,0,MAXA(N13:P13))) -> 72 | R13: =IF(I13="","",IF(OR(M13=0,Q13=0),0,M13+Q13)) -> 129 | S13: =IF(I13="","",IF(A13="H",10^(0.794358141*LOG(I13/174.393)^2)*R13,IF(A13="F",10^(0.89726074*LOG(I13/148.026)^2)*R13,""))) -> 193.9428555 | T13: =RANK(S13,S11:S16) -> 6 | U13: =IF(I13="","",IF(AE13>=0,AE13,IF(AD13>=0,AD13,IF(AC13>=0,AC13,IF(AB13>=0,AB13,IF(AA13>=0,AA13,IF(Z13>=0,Z13,IF(Y13>=0,Y13,X13)))))))) ->  | W13: =SUM(R13-(I13*2)) -> 11.4 | X13: =R13-HLOOKUP(V13,Feuil1!$C$1:$AU$9,2,FALSE) ->  | Y13: =R13-HLOOKUP(V13,Feuil1!$C$1:$AU$9,3,FALSE) ->  | Z13: =R13-HLOOKUP(V13,Feuil1!$C$1:$AU$9,4,FALSE) ->  | AA13: =R13-HLOOKUP(V13,Feuil1!$C$1:$AU$9,5,FALSE) ->  | AB13: =R13-HLOOKUP(V13,Feuil1!$C$1:$AU$9,6,FALSE) ->  | AC13: =R13-HLOOKUP(V13,Feuil1!$C$1:$AU$9,7,FALSE) ->  | AD13: =R13-HLOOKUP(V13,Feuil1!$C$1:$AU$9,8,FALSE) ->  | AE13: =R13-HLOOKUP(V13,Feuil1!$C$1:$AU$9,9,FALSE) ->  | AM13: =IF(AE13>=0,$AE$4,IF(AD13>=0,$AD$4,IF(AC13>=0,$AC$4,IF(AB13>=0,$AB$4,IF(AA13>=0,$AA$4,IF(Z13>=0,$Z$4,IF(Y13>=0,$Y$4,IF(X13>=0,$X$4,$AF$4)))))))) -> 
A14: H | E14: GARCIA | F14: Florian | G14: Clermont Sports | H14: 1997 | I14: 81.5 | J14: 75 | K14: 80 | L14: 85 | M14: =IF(I14="","",IF(MAXA(J14:L14)<=0,0,MAXA(J14:L14))) -> 85 | N14: 110 | O14: 115 | P14: 120 | Q14: =IF(I14="","",IF(MAXA(N14:P14)<=0,0,MAXA(N14:P14))) -> 120 | R14: =IF(I14="","",IF(OR(M14=0,Q14=0),0,M14+Q14)) -> 205 | S14: =IF(I14="","",IF(A14="H",10^(0.794358141*LOG(I14/174.393)^2)*R14,IF(A14="F",10^(0.89726074*LOG(I14/148.026)^2)*R14,""))) -> 250.2962307 | T14: =RANK(S14,S11:S16) -> 4 | U14: =IF(I14="","",IF(AE14>=0,AE14,IF(AD14>=0,AD14,IF(AC14>=0,AC14,IF(AB14>=0,AB14,IF(AA14>=0,AA14,IF(Z14>=0,Z14,IF(Y14>=0,Y14,X14)))))))) ->  | W14: =SUM(R14-(I14*2)) -> 42 | X14: =R14-HLOOKUP(V14,Feuil1!$C$1:$AU$9,2,FALSE) ->  | Y14: =R14-HLOOKUP(V14,Feuil1!$C$1:$AU$9,3,FALSE) ->  | Z14: =R14-HLOOKUP(V14,Feuil1!$C$1:$AU$9,4,FALSE) ->  | AA14: =R14-HLOOKUP(V14,Feuil1!$C$1:$AU$9,5,FALSE) ->  | AB14: =R14-HLOOKUP(V14,Feuil1!$C$1:$AU$9,6,FALSE) ->  | AC14: =R14-HLOOKUP(V14,Feuil1!$C$1:$AU$9,7,FALSE) ->  | AD14: =R14-HLOOKUP(V14,Feuil1!$C$1:$AU$9,8,FALSE) ->  | AE14: =R14-HLOOKUP(V14,Feuil1!$C$1:$AU$9,9,FALSE) ->  | AM14: =IF(AE14>=0,$AE$4,IF(AD14>=0,$AD$4,IF(AC14>=0,$AC$4,IF(AB14>=0,$AB$4,IF(AA14>=0,$AA$4,IF(Z14>=0,$Z$4,IF(Y14>=0,$Y$4,IF(X14>=0,$X$4,$AF$4)))))))) -> 
A15: H | E15: MULLOR | F15: Julien | G15: Clermont Sports | H15: 1997 | I15: 62.15 | J15: 82 | K15: 87 | L15: -90 | M15: 87 | N15: 105 | O15: -110 | P15: -110 | Q15: 105 | R15: 192 | S15: 277.2009184 | T15: =RANK(S15,S11:S16) -> 2 | W15: =SUM(R15-(I15*2)) -> 67.7 | X15: =R15-HLOOKUP(V15,Feuil1!$C$1:$AU$9,2,FALSE) ->  | Y15: =R15-HLOOKUP(V15,Feuil1!$C$1:$AU$9,3,FALSE) ->  | Z15: =R15-HLOOKUP(V15,Feuil1!$C$1:$AU$9,4,FALSE) ->  | AA15: =R15-HLOOKUP(V15,Feuil1!$C$1:$AU$9,5,FALSE) ->  | AB15: =R15-HLOOKUP(V15,Feuil1!$C$1:$AU$9,6,FALSE) ->  | AC15: =R15-HLOOKUP(V15,Feuil1!$C$1:$AU$9,7,FALSE) ->  | AD15: =R15-HLOOKUP(V15,Feuil1!$C$1:$AU$9,8,FALSE) ->  | AE15: =R15-HLOOKUP(V15,Feuil1!$C$1:$AU$9,9,FALSE) -> 
A16: H | E16: YILDIRIM | F16: Mario | G16: SR Obernai | H16: 1998 | I16: 71.8 | J16: 90 | K16: 95 | L16: 98 | M16: 98 | N16: 112 | O16: 116 | P16: 120 | Q16: 120 | R16: 218 | S16: 286.0538766 | T16: =RANK(S16,S11:S16) -> 1 | W16: =SUM(R16-(I16*2)) -> 74.4 | X16: =R16-HLOOKUP(V16,Feuil1!$C$1:$AU$9,2,FALSE) ->  | Y16: =R16-HLOOKUP(V16,Feuil1!$C$1:$AU$9,3,FALSE) ->  | Z16: =R16-HLOOKUP(V16,Feuil1!$C$1:$AU$9,4,FALSE) ->  | AA16: =R16-HLOOKUP(V16,Feuil1!$C$1:$AU$9,5,FALSE) ->  | AB16: =R16-HLOOKUP(V16,Feuil1!$C$1:$AU$9,6,FALSE) ->  | AC16: =R16-HLOOKUP(V16,Feuil1!$C$1:$AU$9,7,FALSE) ->  | AD16: =R16-HLOOKUP(V16,Feuil1!$C$1:$AU$9,8,FALSE) ->  | AE16: =R16-HLOOKUP(V16,Feuil1!$C$1:$AU$9,9,FALSE) -> 
E18: Secrétaire de Compétition | G18: Arbitre | N18: Arbitre | T18: Arbitre
D19: Nom : | E19: Philippe AUBOUY | F19: Nom : | G19: WILZEWSKI Gerard | L19: Nom : | M19: ARQUIER Beatrice | R19: Nom : | S19: DELPUECH Jean-Claude
D20: Signature : | F20: Signature : | L20: Signature : | R20: Signature :
W522: J69 | X522: J77 | Y522: J85 | Z522: J94 | AA522: J105 | AB522: J+105 | AD522: J56 | AE522: J62 | AF522: J69 | AG522: J77 | AH522: J85 | AI522: J94 | AJ522: J105 | AK522: J+105 | AM522: S56 | AN522: S62 | AO522: S69 | AP522: S77 | AQ522: S85 | AR522: S94 | AS522: S105 | AT522: S+105
W523: 130 | X523: 145 | Y523: 160 | Z523: 170 | AA523: 180 | AB523: 190 | AD523: 100 | AE523: 115 | AF523: 130 | AG523: 145 | AH523: 160 | AI523: 170 | AJ523: 180 | AK523: 190 | AM523: 115 | AN523: 135 | AO523: 150 | AP523: 165 | AQ523: 180 | AR523: 190 | AS523: 200 | AT523: 210
W524: 150 | X524: 165 | Y524: 180 | Z524: 190 | AA524: 200 | AB524: 210 | AD524: 115 | AE524: 135 | AF524: 150 | AG524: 165 | AH524: 180 | AI524: 190 | AJ524: 200 | AK524: 210 | AM524: 130 | AN524: 150 | AO524: 165 | AP524: 185 | AQ524: 200 | AR524: 210 | AS524: 220 | AT524: 230
W525: 165 | X525: 185 | Y525: 200 | Z525: 210 | AA525: 220 | AB525: 230 | AD525: 130 | AE525: 150 | AF525: 165 | AG525: 185 | AH525: 200 | AI525: 210 | AJ525: 220 | AK525: 230 | AM525: 145 | AN525: 165 | AO525: 180 | AP525: 200 | AQ525: 220 | AR525: 230 | AS525: 240 | AT525: 250
W526: 180 | X526: 200 | Y526: 220 | Z526: 230 | AA526: 240 | AB526: 250 | AD526: 145 | AE526: 165 | AF526: 180 | AG526: 200 | AH526: 220 | AI526: 230 | AJ526: 240 | AK526: 250 | AM526: 175 | AN526: 195 | AO526: 215 | AP526: 235 | AQ526: 250 | AR526: 260 | AS526: 275 | AT526: 280
W527: 215 | X527: 235 | Y527: 250 | Z527: 260 | AA527: 275 | AB527: 280 | AD527: 175 | AE527: 195 | AF527: 215 | AG527: 235 | AH527: 250 | AI527: 260 | AJ527: 275 | AK527: 280 | AM527: 210 | AN527: 230 | AO527: 250 | AP527: 270 | AQ527: 290 | AR527: 300 | AS527: 310 | AT527: 325
W528: 250 | X528: 270 | Y528: 290 | Z528: 300 | AA528: 310 | AB528: 325 | AD528: 210 | AE528: 230 | AF528: 250 | AG528: 270 | AH528: 290 | AI528: 300 | AJ528: 310 | AK528: 325 | AM528: 230 | AN528: 255 | AO528: 275 | AP528: 300 | AQ528: 315 | AR528: 335 | AS528: 345 | AT528: 355
W529: 295 | X529: 320 | Y529: 335 | Z529: 355 | AA529: 370 | AB529: 380 | AD529: 245 | AE529: 270 | AF529: 295 | AG529: 320 | AH529: 335 | AI529: 355 | AJ529: 370 | AK529: 380 | AM529: 245 | AN529: 270 | AO529: 295 | AP529: 320 | AQ529: 335 | AR529: 355 | AS529: 370 | AT529: 380

Sheet Feuil1 (hidden)
C1: FC44 | D1: FC48 | E1: FC53 | F1: FC58 | G1: FC63 | H1: FC69 | I1: FC+69 | J1: FJ48 | K1: FJ53 | L1: FJ58 | M1: FJ63 | N1: FJ69 | O1: FJ75 | P1: FJ+75 | Q1: FS48 | R1: FS53 | S1: FS58 | T1: FS63 | U1: FS69 | V1: FS75 | W1: FS+75 | X1: C50 | Y1: C56 | Z1: C62 | AA1: C69 | AB1: C77 | AC1: C85 | AD1: C94 | AE1: C+94 | AF1: J56 | AG1: J62 | AH1: J69 | AI1: J77 | AJ1: J85 | AK1: J94 | AL1: J105 | AM1: J+105 | AN1: S56 | AO1: S62 | AP1: S69 | AQ1: S77 | AR1: S85 | AS1: S94 | AT1: S105 | AU1: S+105
B2: DEPARTEMENTAL | C2: 40 | D2: 45 | E2: 50 | F2: 55 | G2: 60 | H2: 65 | I2: 75 | J2: 50 | K2: 55 | L2: 65 | M2: 70 | N2: 75 | O2: 90 | P2: 100 | Q2: 60 | R2: 70 | S2: 80 | T2: 85 | U2: 95 | V2: 100 | W2: 110 | X2: 65 | Y2: 80 | Z2: 100 | AA2: 115 | AB2: 125 | AC2: 135 | AD2: 150 | AE2: 160 | AF2: 95 | AG2: 110 | AH2: 125 | AI2: 140 | AJ2: 155 | AK2: 165 | AL2: 175 | AM2: 185 | AN2: 110 | AO2: 130 | AP2: 145 | AQ2: 160 | AR2: 175 | AS2: 185 | AT2: 195 | AU2: 205
B3: REGIONAL | C3: 50 | D3: 55 | E3: 65 | F3: 70 | G3: 75 | H3: 80 | I3: 90 | J3: 60 | K3: 65 | L3: 75 | M3: 80 | N3: 85 | O3: 100 | P3: 110 | Q3: 70 | R3: 80 | S3: 90 | T3: 95 | U3: 105 | V3: 115 | W3: 125 | X3: 80 | Y3: 95 | Z3: 115 | AA3: 130 | AB3: 145 | AC3: 155 | AD3: 170 | AE3: 180 | AF3: 110 | AG3: 130 | AH3: 145 | AI3: 160 | AJ3: 175 | AK3: 185 | AL3: 195 | AM3: 205 | AN3: 130 | AO3: 150 | AP3: 165 | AQ3: 180 | AR3: 195 | AS3: 205 | AT3: 215 | AU3: 225
B4: INTERREGIONAL | C4: 60 | D4: 65 | E4: 75 | F4: 80 | G4: 85 | H4: 95 | I4: 105 | J4: 75 | K4: 80 | L4: 90 | M4: 95 | N4: 100 | O4: 115 | P4: 120 | Q4: 85 | R4: 95 | S4: 100 | T4: 110 | U4: 120 | V4: 130 | W4: 140 | X4: 95 | Y4: 110 | Z4: 130 | AA4: 150 | AB4: 165 | AC4: 180 | AD4: 190 | AE4: 205 | AF4: 130 | AG4: 150 | AH4: 165 | AI4: 185 | AJ4: 195 | AK4: 205 | AL4: 215 | AM4: 225 | AN4: 145 | AO4: 170 | AP4: 185 | AQ4: 205 | AR4: 220 | AS4: 230 | AT4: 240 | AU4: 250
B5: FEDERAL | C5: 70 | D5: 75 | E5: 85 | F5: 90 | G5: 95 | H5: 105 | I5: 115 | J5: 85 | K5: 95 | L5: 100 | M5: 110 | N5: 120 | O5: 130 | P5: 140 | Q5: 95 | R5: 105 | S5: 115 | T5: 125 | U5: 135 | V5: 145 | W5: 155 | X5: 110 | Y5: 125 | Z5: 145 | AA5: 160 | AB5: 180 | AC5: 195 | AD5: 210 | AE5: 220 | AF5: 145 | AG5: 165 | AH5: 185 | AI5: 205 | AJ5: 220 | AK5: 230 | AL5: 240 | AM5: 250 | AN5: 170 | AO5: 195 | AP5: 215 | AQ5: 235 | AR5: 250 | AS5: 260 | AT5: 270 | AU5: 280
B6: NATIONAL | C6: 80 | D6: 85 | E6: 95 | F6: 100 | G6: 110 | H6: 120 | I6: 130 | J6: 95 | K6: 105 | L6: 110 | M6: 125 | N6: 135 | O6: 145 | P6: 155 | Q6: 110 | R6: 120 | S6: 130 | T6: 140 | U6: 150 | V6: 160 | W6: 170 | X6: 120 | Y6: 140 | Z6: 160 | AA6: 175 | AB6: 195 | AC6: 215 | AD6: 225 | AE6: 235 | AF6: 170 | AG6: 190 | AH6: 215 | AI6: 235 | AJ6: 250 | AK6: 260 | AL6: 270 | AM6: 280 | AN6: 195 | AO6: 220 | AP6: 240 | AQ6: 265 | AR6: 280 | AS6: 290 | AT6: 300 | AU6: 310
B7: INTERNATIONAL B | C7: 90 | D7: 95 | E7: 105 | F7: 115 | G7: 125 | H7: 135 | I7: 145 | J7: 110 | K7: 120 | L7: 130 | M7: 140 | N7: 150 | O7: 160 | P7: 170 | Q7: 125 | R7: 140 | S7: 155 | T7: 165 | U7: 175 | V7: 180 | W7: 190 | X7: 135 | Y7: 155 | Z7: 175 | AA7: 190 | AB7: 210 | AC7: 230 | AD7: 240 | AE7: 250 | AF7: 190 | AG7: 215 | AH7: 240 | AI7: 270 | AJ7: 280 | AK7: 290 | AL7: 305 | AM7: 315 | AN7: 210 | AO7: 240 | AP7: 260 | AQ7: 290 | AR7: 310 | AS7: 320 | AT7: 330 | AU7: 340
B8: INTERNATIONAL A | C8: 100 | D8: 105 | E8: 115 | F8: 125 | G8: 135 | H8: 145 | I8: 155 | J8: 125 | K8: 135 | L8: 145 | M8: 155 | N8: 165 | O8: 175 | P8: 185 | Q8: 140 | R8: 160 | S8: 175 | T8: 185 | U8: 190 | V8: 195 | W8: 210 | X8: 150 | Y8: 175 | Z8: 195 | AA8: 215 | AB8: 235 | AC8: 250 | AD8: 260 | AE8: 270 | AF8: 215 | AG8: 235 | AH8: 260 | AI8: 280 | AJ8: 300 | AK8: 310 | AL8: 320 | AM8: 330 | AN8: 225 | AO8: 255 | AP8: 275 | AQ8: 310 | AR8: 330 | AS8: 340 | AT8: 350 | AU8: 360
B9: OLYMPIQUE | C9: 1000 | D9: 1000 | E9: 1000 | F9: 1000 | G9: 1000 | H9: 1000 | I9: 1000 | J9: 1000 | K9: 1000 | L9: 1000 | M9: 1000 | N9: 1000 | O9: 1000 | P9: 10000 | Q9: 155 | R9: 175 | S9: 190 | T9: 200 | U9: 205 | V9: 210 | W9: 225 | X9: 1000 | Y9: 1000 | Z9: 1000 | AA9: 1000 | AB9: 1000 | AC9: 10000 | AD9: 1000 | AE9: 1000 | AF9: 1000 | AG9: 1000 | AH9: 1000 | AI9: 10000 | AJ9: 1000 | AK9: 1000 | AL9: 1000 | AM9: 10000 | AN9: 240 | AO9: 270 | AP9: 290 | AQ9: 325 | AR9: 345 | AS9: 355 | AT9: 365 | AU9: 375
B10: MINIME | C10: CADET | D10: JUNIOR | E10: SENIOR | G10: MINIME | H10: CADETTE | I10: JUNIOR | J10: SENIOR
A11: 20.01 | B11: NON | C11: C50 | D11: J56 | E11: S56 | F11: 20.01 | G11: NON | H11: FC44 | I11: FJ48 | J11: FS48
A12: 34.01 | B12: NON | C12: C50 | D12: J56 | E12: S56 | F12: 30.01 | G12: NON | H12: FC44 | I12: FJ48 | J12: FS48
A13: 38.01 | B13: NON | C13: C50 | D13: J56 | E13: S56 | F13: 35.01 | G13: NON | H13: FC44 | I13: FJ48 | J13: FS48
A14: 40.01 | B14: NON | C14: C50 | D14: J56 | E14: S56 | F14: 36.01 | G14: NON | H14: FC44 | I14: FJ48 | J14: FS48
A15: 45.01 | B15: NON | C15: C50 | D15: J56 | E15: S56 | F15: 40.01 | G15: NON | H15: FC44 | I15: FJ48 | J15: FS48
A16: 50.01 | B16: NON | C16: C56 | D16: J56 | E16: S56 | F16: 44.01 | G16: NON | H16: FC48 | I16: FJ48 | J16: FS48
A17: 52.05 | B17: NON | C17: C56 | D17: J56 | E17: S56 | F17: 48.01 | G17: NON | H17: FC53 | I17: FJ53 | J17: FS53
A18: 56.01 | B18: NON | C18: C62 | D18: J62 | E18: S62 | F18: 53.01 | G18: NON | H18: FC58 | I18: FJ58 | J18: FS58
A19: 62.01 | B19: NON | C19: C69 | D19: J69 | E19: S69 | F19: 58.01 | G19: NON | H19: FC63 | I19: FJ63 | J19: FS63
A20: 69.01 | B20: NON | C20: C77 | D20: J77 | E20: S77 | F20: 63.01 | G20: NON | H20: FC69 | I20: FJ69 | J20: FS69
A21: 77.01 | B21: NON | C21: C85 | D21: J85 | E21: S85 | F21: 69.01 | G21: NON | H21: FC+69 | I21: FJ75 | J21: FS75
A22: 85.01 | B22: NON | C22: C94 | D22: J94 | E22: S94 | F22: 75.01 | G22: NON | H22: FC+69 | I22: FJ+75 | J22: FS+75
A23: 94.01 | B23: NON | C23: C+94 | D23: J105 | E23: S105 | F23: 110 | G23: NON | H23: FC+69 | I23: FJ+75 | J23: FS+75
A24: 105.01 | B24: NON | C24: C+94 | D24: J+105 | E24: S+105 | F24: 140 | G24: NON | H24: FC+69 | I24: FJ+75 | J24: FS+75
A25: 110 | B25: NON | C25: C+94 | D25: J+105 | E25: S+105
A26: 120 | B26: NON | C26: C+94 | D26: J+105 | E26: S+105
A27: 130 | B27: NON | C27: C+94 | D27: J+105 | E27: S+105
A28: 140 | B28: NON | C28: C+94 | D28: J+105 | E28: S+105
